fUST/lending_fUST_20250925
["ID","MTS","AMOUNT","RATE_DAILY","PERIOD"]
[387629431,1758790948519,-480.0,0.00019898,2]
[387629432,1758790948548,-480.0,0.00019898,2]
[387629433,1758790948576,-480.0,0.00019898,2]
[387629434,1758790948698,-162.34625366,0.00019899,2]
[387629435,1758790948725,-480.0,0.00019899,2]
[387629436,1758790948752,-480.0,0.00019899,2]
[387629437,1758790948780,-588.95138659,0.00019899,2]
[387629438,1758790948808,-480.0,0.00019899,2]
[387629439,1758790948834,-480.0,0.00019899,2]
[387629440,1758790948863,-480.0,0.00019899,2]
[387629441,1758790948958,-480.0,0.00019899,2]
[387629442,1758790948985,-480.0,0.00019899,2]
[387629443,1758790949013,-480.0,0.00019899,2]
[387629444,1758790949039,-480.0,0.00019899,2]
[387629445,1758790949067,-480.0,0.00019899,2]
[387629446,1758790949095,-960.64545318,0.000199,2]
[387629447,1758790949125,-1000.0,0.00019921,2]
[387629448,1758790949152,-501.7564302,0.00020014,2]
[387629449,1758790949708,-220.31459004,0.00020014,2]
[387629450,1758790949722,-279.68540996,0.00020014,2]
[387629451,1758790949731,-222.07102024,0.00020014,2]
[387629452,1758790949745,-275.20623324,0.00020014,2]
[387629453,1758790956476,1293.3855145,0.00019078,2]
[387629454,1758790957741,-481.13078591,0.00019349,2]
[387629455,1758790957780,-480.0,0.00019349,2]
[387629456,1758790957790,-8557.74842818,0.00019352,2]
[387629457,1758790957903,-10000.01,0.00019352,2]
[387629458,1758790958040,-10000.01,0.00019352,2]
[387629459,1758790958796,-10000.01,0.00019352,2]
[387629460,1758790965149,2198.24854666,0.00019078,2]
[387629463,1758790975751,-480.0,0.00019349,2]
[387629464,1758790975785,-9040.01,0.00019352,2]
[387629465,1758790975988,-10000.01,0.00019352,2]
[387629466,1758790976109,-10000.01,0.00019352,2]
[387629467,1758790976304,-10000.01,0.00019352,2]
[387629468,1758790981586,-10000.01,0.00019352,2]
[387629469,1758790981772,-10000.01,0.00019352,2]
[387629470,1758790982235,-10000.01,0.00019352,2]
[387629471,1758790982384,-10000.01,0.00019352,2]
[387629472,1758790988026,1109.30633356,0.00018771,2]
[387629473,1758790992858,-10000.01,0.00019352,2]
[387629474,1758790992999,-10000.01,0.00019352,2]
[387629475,1758790993152,-10000.01,0.00019352,2]
[387629476,1758790993312,-10000.01,0.00019352,2]
[387629481,1758791045935,-153.05260373,0.00019171,2]
[387629482,1758791045956,-31.53716196,0.000192,2]
[387629483,1758791048084,-220.65314496,0.000192,2]
[387629484,1758791051401,-238.35420783,0.000192,2]
[387629491,1758791080750,1152.9496506,0.00018369,2]
[387629498,1758791093697,-205.776706,0.00019301,2]
[387629499,1758791093726,-480.0,0.00019349,2]
[387629500,1758791093755,-480.0,0.00019349,2]
[387629501,1758791093783,-637.24,0.00019349,2]
[387629502,1758791093812,-480.0,0.0001935,2]
[387629503,1758791093838,-480.0,0.00019351,2]
[387629504,1758791093865,-482.09188967,0.00019351,2]
[387629505,1758791093893,-480.0,0.00019351,2]
[387629506,1758791093919,-498.82696917,0.00019351,2]
[387629507,1758791093945,-480.0,0.00019351,2]
[387629508,1758791098714,592.13887032,0.0001935,2]
[387629509,1758791103565,-702.11112968,0.0001935,2]
[387629510,1758791103594,-300.0,0.0001935,2]
[387629511,1758791103625,-300.0,0.0001935,2]
[387629512,1758791103653,-300.0,0.0001935,2]
[387629513,1758791103681,-300.0,0.0001935,2]
[387629514,1758791103712,-480.0,0.00019351,2]
[387629515,1758791103744,-500.0,0.00019351,2]
[387629516,1758791103774,-317.03044726,0.00019351,2]
[387629517,1758791103804,-500.0,0.00019351,2]
[387629518,1758791103835,-500.0,0.00019351,2]
[387629519,1758791103866,-500.0,0.00019351,2]
[387629520,1758791103895,-252.73175541,0.00019351,2]
[387629521,1758791104305,-96.2633353,0.00019351,2]
[387629522,1758791104337,-500.0,0.00019351,2]
[387629523,1758791104368,-500.0,0.00019351,2]
[387629524,1758791104399,-290.49438179,0.00019351,2]
[387629525,1758791104430,-500.0,0.00019351,2]
[387629526,1758791104462,-500.0,0.00019351,2]
[387629527,1758791104492,-500.0,0.00019351,2]
[387629528,1758791104523,-500.0,0.00019351,2]
[387629529,1758791104552,-500.0,0.00019351,2]
[387629530,1758791104582,-417.07835446,0.00019351,2]
[387629531,1758791104978,-9798.05929105,0.00019352,2]
[387629532,1758791104993,-10000.01,0.00019352,2]
[387629533,1758791105026,235.43770343,0.00019349,2]
[387629534,1758791113428,-244.56229657,0.00019349,2]
[387629535,1758791113457,-1200.0,0.00019351,2]
[387629536,1758791113485,-480.0,0.00019351,2]
[387629537,1758791113545,-6150.88540686,0.00019352,2]
[387629538,1758791113581,-10000.01,0.00019352,2]
[387629539,1758791113717,-10000.01,0.00019352,2]
[387629540,1758791113906,-10000.01,0.00019352,2]
[387629548,1758791123708,-10000.01,0.00019352,2]
[387629549,1758791123960,-10000.01,0.00019352,2]
[387629550,1758791124173,-10000.01,0.00019352,2]
[387629551,1758791124334,-10000.01,0.00019352,2]
[387629558,1758791133719,-480.0,0.00019351,2]
[387629559,1758791133752,-262.51932,0.00019351,2]
[387629560,1758791133799,-8514.97136,0.00019352,2]
[387629561,1758791133906,-10000.01,0.00019352,2]
[387629562,1758791134192,-10000.01,0.00019352,2]
[387629563,1758791134375,-10000.01,0.00019352,2]
[387629564,1758791136251,163.0,0.00019,4]
[387629566,1758791137339,163.0,0.00019,4]
[387629571,1758791143596,-480.0,0.00019349,2]
[387629572,1758791143629,-9040.01,0.00019352,2]
[387629573,1758791143834,-10000.01,0.00019352,2]
[387629574,1758791144092,-10000.01,0.00019352,2]
[387629575,1758791144223,-10000.01,0.00019352,2]
[387629576,1758791150231,163.0,0.000273,120]
[387629577,1758791151373,163.0,0.000273,120]
[387629578,1758791153642,-212.51919423,0.00019351,2]
[387629579,1758791153680,-9574.97161154,0.00019352,2]
[387629580,1758791153804,-10000.01,0.00019352,2]
[387629581,1758791153983,-10000.01,0.00019352,2]
[387629582,1758791154149,-676.96609763,0.00019352,2]
[387629583,1758791154271,-8646.07780474,0.00019352,2]
[387629585,1758791161641,-500.0,0.00019373,2]
[387629586,1758791161671,-3424.937772,0.00019401,2]
[387629587,1758791161711,-2150.134456,0.00019401,2]
[387629588,1758791161826,-480.0,0.00019623,2]
[387629589,1758791161857,-480.0,0.00019623,2]
[387629590,1758791161889,-637.24,0.00019623,2]
[387629591,1758791161919,-480.0,0.00019623,2]
[387629592,1758791161951,-480.0,0.00019624,2]
[387629593,1758791161983,-1294.25,0.00019624,2]
[387629594,1758791162015,-480.0,0.00019625,2]
[387629595,1758791162047,-472.12,0.00019625,2]
[387629596,1758791162228,-480.0,0.00019625,2]
[387629597,1758791162261,-480.0,0.00019897,2]
[387629598,1758791162294,-480.0,0.00019897,2]
[387629599,1758791162327,-637.24,0.00019897,2]
[387629600,1758791162363,-480.0,0.00019897,2]
[387629601,1758791162394,-480.0,0.00019898,2]
[387629602,1758791162426,-1294.25,0.00019898,2]
[387629603,1758791162454,-480.0,0.00019899,2]
[387629604,1758791162563,-480.0,0.00019899,2]
[387629605,1758791162593,-484.83722018,0.00019899,2]
[387629606,1758791162622,-480.0,0.00019899,2]
[387629607,1758791162650,-480.0,0.00019899,2]
[387629608,1758791162680,-480.0,0.00019899,2]
[387629609,1758791162710,-480.0,0.00019899,2]
[387629610,1758791162739,-299.24377373,0.00019899,2]
[387629611,1758791162771,-480.0,0.00019899,2]
[387629612,1758791162798,-254.745472,0.00019899,2]
[387629613,1758791162827,-480.0,0.00019899,2]
[387629614,1758791162856,-175.08366021,0.000199,2]
[387629615,1758791163504,-114.73633979,0.000199,2]
[387629616,1758791163519,-480.0,0.000199,2]
[387629617,1758791163534,-257.45340797,0.000199,2]
[387629618,1758791163545,-769.82,0.00019921,2]
[387629644,1758791205768,-290.8918336,0.00019205,2]
[387629645,1758791207882,-181.5589787,0.00019205,2]
[387629646,1758791213250,-177.8110459,0.00019205,2]
[387629647,1758791216347,-192.20953861,0.00019205,2]
[387629648,1758791220155,-125.15567919,0.00019205,2]
[387629649,1758791220177,-229.7909778,0.00019205,2]
[387629650,1758791222384,-233.69952228,0.00019205,2]
[387629651,1758791223942,-426.86045003,0.00019205,2]
[387629652,1758791228759,-77.27612589,0.00019205,2]
[387629654,1758791243128,-493.23,0.00019349,2]
[387629655,1758791243153,-480.0,0.00019349,2]
[387629656,1758791243179,-480.0,0.0001935,2]
[387629657,1758791243202,-480.0,0.0001935,2]
[387629658,1758791243224,-334.84347292,0.00019351,2]
[387629661,1758791280253,279.07,0.00015984,2]
[387629662,1758791282921,-480.0,0.00019349,2]
[387629664,1758791297752,-145.15652708,0.00019351,2]
[387629665,1758791297776,-21.93663088,0.00019351,2]
[387629974,1758791356208,1000.0,0.00018531,2]
[387630168,1758791364139,-300.0,0.0001935,2]
[387630170,1758791364161,-458.94892069,0.00019351,2]
[387630172,1758791364189,-480.0,0.00019351,2]
[387630178,1758791364320,-541.92057846,0.00019351,2]
[387630179,1758791364344,-480.0,0.00019351,2]
[387630180,1758791364366,-263.42443981,0.00019351,2]
[387630376,1758791432105,-512.5458132,0.00019323,2]
[387630378,1758791432114,-480.0,0.00019349,2]
[387630380,1758791432124,-172.38139221,0.0001935,2]
[387630383,1758791432135,-127.61860779,0.0001935,2]
[387630385,1758791432144,-300.0,0.0001935,2]
[387630387,1758791432153,-944.0,0.0001935,2]
[387630389,1758791432163,-216.57556019,0.00019351,2]
[387630391,1758791432172,-480.0,0.00019351,2]
[387630393,1758791432182,-480.0,0.00019351,2]
[387630395,1758791432191,-480.0,0.00019351,2]
[387630397,1758791432201,-480.0,0.00019351,2]
[387630398,1758791432210,-299.24377373,0.00019351,2]
[387630400,1758791432219,-253.68564014,0.00019351,2]
[387630403,1758791432231,-226.31435986,0.00019351,2]
[387630405,1758791432240,-480.0,0.00019351,2]
[387630407,1758791432250,-480.0,0.00019351,2]
[387630409,1758791432259,-480.0,0.00019351,2]
[387630411,1758791432269,-480.0,0.00019351,2]
[387630413,1758791432279,-480.0,0.00019351,2]
[387630415,1758791432288,-162.33,0.00019351,2]
[387630417,1758791432297,-480.0,0.00019351,2]
[387630419,1758791432306,-480.0,0.00019351,2]
[387630421,1758791432316,-482.64535066,0.00019351,2]
[387630423,1758791432325,-500.0,0.00019351,2]
[387630425,1758791432334,-280.41066479,0.00019351,2]
[387630427,1758791432344,-253.88595654,0.00019351,2]
[387630429,1758791432352,-500.0,0.00019351,2]
[387630431,1758791432362,-500.0,0.00019351,2]
[387630433,1758791432376,-436.6003704,0.00019351,2]
[387630435,1758791432386,-500.0,0.00019351,2]
[387630437,1758791432396,-500.0,0.00019351,2]
[387630439,1758791432406,-500.0,0.00019351,2]
[387630440,1758791432416,-157.4531505,0.00019351,2]
[387630441,1758791432425,-5362.976983,0.00019352,2]
[387630442,1758791432437,-900.1571553,0.00019352,2]
[387630443,1758791432449,-6118.00547707,0.00019352,2]
[387630481,1758791438131,-480.0,0.0001935,2]
[387630483,1758791438140,-480.0,0.00019351,2]
[387630485,1758791438150,-1708.27079199,0.00019352,2]
[387630488,1758791438165,-42269.34720805,0.00019352,2]
[387630500,1758791438279,-7330.17714334,0.00019352,2]
[387630503,1758791438294,-306311.06524125,0.00019352,2]
[387630505,1758791438304,-218.6037614,0.00019423,2]
[387630507,1758791438314,-2781.30017186,0.00019523,2]
[387630509,1758791438323,-480.0,0.00019623,2]
[387630511,1758791438333,-480.0,0.00019624,2]
[387630513,1758791438342,-480.0,0.00019625,2]
[387630515,1758791438352,-480.0,0.00019625,2]
[387630517,1758791438362,-480.0,0.00019625,2]
[387630519,1758791438375,-480.0,0.00019625,2]
[387630521,1758791438385,-480.0,0.00019625,2]
[387630523,1758791438395,-480.0,0.00019625,2]
[387630525,1758791438404,-262.18,0.00019625,2]
[387630527,1758791438414,-480.0,0.00019625,2]
[387630529,1758791438424,-480.0,0.00019625,2]
[387630531,1758791438433,-480.0,0.00019625,2]
[387630533,1758791438443,-480.0,0.00019625,2]
[387630535,1758791438452,-162.33625366,0.00019625,2]
[387630537,1758791438462,-480.0,0.00019625,2]
[387630539,1758791438471,-588.95138659,0.00019625,2]
[387630541,1758791438480,-4379.7602101,0.00019626,2]
[387630543,1758791438488,-164.0,0.000198,4]
[387630545,1758791438498,-164.0,0.000198,4]
[387630547,1758791438507,-493.27413532,0.00019897,2]
[387630549,1758791438518,-480.0,0.00019898,2]
[387630551,1758791438527,-477.10875645,0.00019899,2]
[387630553,1758791438536,-381.41995676,0.00019899,2]
[387630555,1758791438546,-484.05635111,0.00019899,2]
[387630557,1758791438556,-521.83599742,0.00019899,2]
[387630559,1758791438567,-480.0,0.00019899,2]
[387630561,1758791438584,-480.0,0.00019899,2]
[387630563,1758791438594,-480.0,0.00019899,2]
[387630565,1758791438603,-430.02054,0.00019899,2]
[387630567,1758791438613,-480.0,0.00019899,2]
[387630569,1758791438622,-610.69,0.00019899,2]
[387630571,1758791438631,-509.99793234,0.00019899,2]
[387630573,1758791438642,-480.0,0.00019899,2]
[387630575,1758791438651,-480.0,0.00019899,2]
[387630577,1758791438660,-480.0,0.00019899,2]
[387630579,1758791438669,-480.0,0.00019899,2]
[387630581,1758791438679,-481.9137371,0.00019899,2]
[387630583,1758791438688,-480.0,0.00019899,2]
[387630585,1758791438697,-481.9092503,0.00019899,2]
[387630587,1758791438706,-480.0,0.00019899,2]
[387630589,1758791438715,-500.0,0.00019899,2]
[387630591,1758791438724,-480.0,0.00019899,2]
[387630593,1758791438733,-483.08240357,0.00019899,2]
[387630595,1758791438743,-482.4880391,0.00019899,2]
[387630596,1758791438752,-1026.85952655,0.000199,2]
[387630599,1758791438761,-500.0,0.00019973,2]
[387630601,1758791438771,-500.0,0.00019973,2]
[387630603,1758791438780,-100000.0,0.0001999,2]
[387630605,1758791438790,-160.0,0.0002,3]
[387630607,1758791438799,-501.2977237,0.00020085,2]
[387630609,1758791438808,-500.93720808,0.00020085,2]
[387630611,1758791438818,-480.0,0.00020171,2]
[387630613,1758791438828,-480.0,0.00020172,2]
[387630615,1758791438838,-480.0,0.00020173,2]
[387630617,1758791438847,-480.0,0.00020173,2]
[387630619,1758791438856,-183.42,0.00020173,2]
[387630621,1758791438866,-496.56485711,0.00020173,2]
[387630623,1758791438875,-480.0,0.00020173,2]
[387630625,1758791438886,-480.0,0.00020173,2]
[387630627,1758791438896,-480.0,0.00020173,2]
[387630629,1758791438905,-480.0,0.00020173,2]
[387630631,1758791438915,-480.0,0.00020173,2]
[387630633,1758791438925,-610.69,0.00020173,2]
[387630635,1758791438934,-480.0,0.00020173,2]
[387630637,1758791438944,-480.0,0.00020173,2]
[387630639,1758791438953,-480.0,0.00020173,2]
[387630641,1758791438962,-480.0,0.00020444,2]
[387630643,1758791438971,-483.50126493,0.00020444,2]
[387630645,1758791438980,-480.0,0.00020445,2]
[387630647,1758791438989,-480.0,0.00020446,2]
[387630649,1758791438998,-480.0,0.00020447,2]
[387630651,1758791439008,-480.0,0.00020447,2]
[387630653,1758791439017,-480.0,0.00020447,2]
[387630654,1758791439027,-480.0,0.00020447,2]
[387630655,1758791439036,-480.0,0.00020447,2]
[387630657,1758791439046,-610.69,0.00020447,2]
[387630659,1758791439056,-480.0,0.00020447,2]
[387630661,1758791439065,-480.0,0.00020447,2]
[387630663,1758791439074,-480.0,0.00020447,2]
[387630665,1758791439083,-1000.0,0.00020521,2]
[387630667,1758791439092,-394.58552777,0.00020562,2]
[387630669,1758791439101,-651.2,0.00020619,2]
[387630671,1758791439110,-500.0,0.00020626,2]
[387630673,1758791439119,-28567.35474008,0.00020627,3]
[387630675,1758791439128,-501.7564302,0.00020669,2]
[387630677,1758791439138,-512.54581319,0.00020692,2]
[387630679,1758791439147,-480.0,0.00020719,2]
[387630681,1758791439156,-480.0,0.0002072,2]
[387630682,1758791439165,-256.82,0.00020721,2]
[387630683,1758791439174,-480.0,0.00020721,2]
[387630684,1758791439184,-480.0,0.00020721,2]
[387630686,1758791439193,-480.0,0.00020721,2]
[387630688,1758791439203,-480.0,0.00020721,2]
[387630690,1758791439212,-610.69,0.00020721,2]
[387630691,1758791439221,-480.0,0.00020721,2]
[387630692,1758791439230,-480.0,0.00020721,2]
[387630693,1758791439240,-480.0,0.00020721,2]
[387630694,1758791439249,-150.0,0.0002079,2]
[387630695,1758791439259,-500.0,0.000208,2]
[387630696,1758791439268,-506.92875789,0.000208,2]
[387630697,1758791439277,-1026.85952642,0.00020972,2]
[387630698,1758791439286,-151.0,0.00020972,2]
[387630699,1758791439296,-480.0,0.00020993,2]
[387630700,1758791439305,-480.0,0.00020994,2]
[387630701,1758791439314,-558.05061399,0.00020995,2]
[387630702,1758791439323,-480.0,0.00020995,2]
[387630703,1758791439333,-480.0,0.00020995,2]
[387630704,1758791439342,-480.0,0.00020995,2]
[387630705,1758791439352,-610.69,0.00020995,2]
[387630706,1758791439362,-480.0,0.00020995,2]
[387630707,1758791439374,-365.71303462,0.00020995,2]
[387630708,1758791439383,-480.0,0.00020995,2]
[387630709,1758791439393,-198.87602421,0.00021246,2]
[387630710,1758791439402,-480.0,0.00021267,2]
[387630711,1758791439412,-480.0,0.00021268,2]
[387630712,1758791439422,-480.0,0.00021269,2]
[387630713,1758791439431,-480.0,0.00021269,2]
[387630714,1758791439440,-480.0,0.00021269,2]
[387630715,1758791439450,-610.69,0.00021269,2]
[387630716,1758791439460,-480.0,0.00021269,2]
[387630717,1758791439470,-480.0,0.00021269,2]
[387630718,1758791439479,-3602.5268105,0.00021307,2]
[387630719,1758791439489,-480.0,0.00021541,2]
[387630720,1758791439498,-480.0,0.00021542,2]
[387630721,1758791439508,-480.0,0.00021543,2]
[387630722,1758791439517,-480.0,0.00021543,2]
[387630723,1758791439527,-480.0,0.00021543,2]
[387630724,1758791439536,-610.69,0.00021543,2]
[387630725,1758791439546,-480.0,0.00021543,2]
[387630726,1758791439556,-480.0,0.00021543,2]
[387630727,1758791439565,-173.7,0.0002173,2]
[387630729,1758791439574,-525.07877521,0.00021815,2]
[387630730,1758791439583,-500.0,0.00021815,2]
[387630731,1758791439593,-480.0,0.00021816,2]
[387630732,1758791439602,-480.0,0.00021817,2]
[387630733,1758791439612,-480.0,0.00021817,2]
[387630734,1758791439622,-480.0,0.00021817,2]
[387630735,1758791439632,-610.69,0.00021817,2]
[387630736,1758791439643,-480.0,0.00021817,2]
[387630737,1758791439652,-480.0,0.00021817,2]
[387630738,1758791439661,-1243.966759,0.00021862,2]
[387630739,1758791439671,-152.58499236,0.00021918,2]
[387630740,1758791439680,-160.0,0.00021966,2]
[387630741,1758791439690,-160.0,0.00021966,2]
[387630742,1758791439699,-160.0,0.00021966,2]
[387630743,1758791439708,-504.46953015,0.00021973,2]
[387630744,1758791439717,-160.0,0.00021978,2]
[387630745,1758791439726,-1026.85952642,0.00022044,2]
[387630746,1758791439735,-512.54581319,0.00022062,2]
[387630747,1758791439744,-480.0,0.0002209,2]
[387630748,1758791439753,-480.0,0.00022091,2]
[387630749,1758791439763,-480.0,0.00022091,2]
[387630750,1758791439774,-480.0,0.00022091,2]
[387630751,1758791439783,-610.69,0.00022091,2]
[387630752,1758791439793,-480.0,0.00022091,2]
[387630753,1758791439802,-480.0,0.00022091,2]
[387630754,1758791439817,-238.57457338,0.00022109,2]
[387630755,1758791439826,-406.79269329,0.00022109,2]
[387630756,1758791439836,-500.0,0.00022109,2]
[387630757,1758791439845,-500.0,0.00022109,2]
[387630758,1758791439854,-160.0,0.00022131,2]
[387630759,1758791439863,-977.256597,0.00022136,2]
[387630760,1758791439872,-244.729112,0.00022188,2]
[387630761,1758791439882,-500.0,0.0002219,2]
[387630762,1758791439891,-1000.0,0.0002229,2]
[387630763,1758791439900,-1000.0,0.0002229,2]
[387630764,1758791439909,-1000.0,0.0002229,2]
[387630765,1758791439919,-1000.0,0.0002229,2]
[387630766,1758791439928,-1000.0,0.0002229,2]
[387630767,1758791439937,-788.45181069,0.0002229,2]
[387630768,1758791439946,-500.0,0.0002229,2]
[387630769,1758791439955,-500.0,0.0002229,2]
[387630770,1758791439964,-500.0,0.0002229,2]
[387630771,1758791439974,-151.0,0.0002229,2]
[387630772,1758791439983,-500.0,0.0002229,2]
[387630773,1758791439992,-151.0,0.0002229,2]
[387630774,1758791440001,-500.0,0.0002229,2]
[387630775,1758791440011,-151.0,0.0002229,2]
[387630776,1758791440020,-500.0,0.0002229,2]
[387630777,1758791440030,-151.0,0.0002229,2]
[387630778,1758791440039,-500.0,0.0002229,2]
[387630779,1758791440048,-500.0,0.0002229,2]
[387630780,1758791440058,-151.0,0.0002229,2]
[387630781,1758791440067,-375.80353911,0.0002229,2]
[387630782,1758791440077,-500.0,0.0002229,2]
[387630783,1758791440086,-151.0,0.0002229,2]
[387630784,1758791440095,-350.0,0.0002229,2]
[387630785,1758791440104,-151.0,0.0002229,2]
[387630786,1758791440114,-500.0,0.0002229,2]
[387630787,1758791440124,-350.0,0.0002229,2]
[387630788,1758791440133,-298.26373367,0.0002229,2]
[387630789,1758791440143,-500.0,0.0002229,2]
[387630791,1758791440152,-350.0,0.0002229,2]
[387630793,1758791440161,-500.0,0.0002229,2]
[387630795,1758791440170,-350.0,0.0002229,2]
[387630797,1758791440179,-500.0,0.0002229,2]
[387630799,1758791440188,-350.0,0.0002229,2]
[387630801,1758791440197,-350.0,0.0002229,2]
[387630803,1758791440206,-500.0,0.0002229,2]
[387630805,1758791440215,-480.0,0.00022364,2]
[387630807,1758791440224,-480.0,0.00022365,2]
[387630809,1758791440233,-480.0,0.00022365,2]
[387630811,1758791440243,-480.0,0.00022365,2]
[387630813,1758791440253,-610.69,0.00022365,2]
[387630815,1758791440262,-480.0,0.00022365,2]
[387630817,1758791440271,-480.0,0.00022365,2]
[387630819,1758791440281,-277.5665021,0.00022411,2]
[387630821,1758791440290,-2781.30017186,0.00022432,2]
[387630823,1758791440299,-182.81,0.00022638,2]
[387630825,1758791440308,-480.0,0.00022639,2]
[387630827,1758791440317,-480.0,0.00022639,2]
[387630829,1758791440326,-480.0,0.00022639,2]
[387630831,1758791440335,-610.69,0.00022639,2]
[387630833,1758791440345,-480.0,0.00022639,2]
[387630835,1758791440354,-480.0,0.00022639,2]
[387630837,1758791440365,-504.83976007,0.00022657,2]
[387630838,1758791440376,-1000.0,0.00022657,2]
[387630839,1758791440385,-414.03812162,0.00022679,2]
[387630841,1758791440395,-150.0,0.0002268,2]
[387630843,1758791440405,-218.055421,0.00022697,2]
[387630845,1758791440414,-1000.0,0.00022738,2]
[387630847,1758791440423,-1062.67944016,0.00022756,2]
[387630848,1758791440432,-500.0,0.000229,2]
[387630850,1758791440442,-500.0,0.00022904,2]
[387630852,1758791440452,-480.0,0.00022913,2]
[387630854,1758791440461,-480.0,0.00022913,2]
[387630856,1758791440471,-480.0,0.00022913,2]
[387630858,1758791440481,-610.69,0.00022913,2]
[387630860,1758791440491,-480.0,0.00022913,2]
[387630862,1758791440501,-480.0,0.00022913,2]
[387630864,1758791440510,-175.43918331,0.00023025,2]
[387630866,1758791440520,-175.43918331,0.00023025,2]
[387630868,1758791440529,-1026.85952642,0.00023116,2]
[387630870,1758791440538,-480.0,0.00023187,2]
[387630872,1758791440548,-480.0,0.00023187,2]
[387630874,1758791440559,-530.8850795,0.00023187,2]
[387630876,1758791440569,-610.69,0.00023187,2]
[387630887,1758791440656,-480.0,0.00023187,2]
[387630889,1758791440665,-480.0,0.00023187,2]
[387630891,1758791440675,-1500.0,0.00023205,2]
[387630893,1758791440684,-3602.5268105,0.00023257,2]
[387630895,1758791440693,-1500.0,0.00023286,2]
[387630897,1758791440703,-482.11086438,0.00023287,2]
[387630899,1758791440712,-767.44,0.00023287,2]
[387630901,1758791440721,-175.43918331,0.00023302,2]
[387630903,1758791440730,-175.43918331,0.00023302,2]
[387630905,1758791440739,-500.0,0.00023307,2]
[387630907,1758791440749,-173.7,0.00023382,4]
[387630909,1758791440759,-3000.0,0.000234,2]
[387630911,1758791440769,-3000.0,0.0002341,2]
[387630913,1758791440778,-3000.0,0.0002342,2]
[387630915,1758791440787,-3000.0,0.0002343,2]
[387630917,1758791440798,-512.54581319,0.00023431,2]
[387630918,1758791440808,-3000.0,0.0002344,2]
[387630920,1758791440817,-3000.0,0.0002345,2]
[387630922,1758791440826,-500.0,0.00023459,2]
[387630924,1758791440835,-3000.0,0.0002346,2]
[387630926,1758791440844,-533.38998382,0.0002346,2]
[387630928,1758791440853,-2133.55993527,0.0002346,2]
[387630930,1758791440863,-480.0,0.00023461,2]
[387630932,1758791440872,-480.0,0.00023461,2]
[387630934,1758791440881,-610.69,0.00023461,2]
[387630936,1758791440890,-480.0,0.00023461,2]
[387630938,1758791440900,-480.0,0.00023461,2]
[387630940,1758791440909,-500.0,0.00023468,2]
[387630942,1758791440918,-3000.0,0.0002347,2]
[387630944,1758791440927,-326.53650875,0.00023473,2]
[387630946,1758791440936,-3000.0,0.0002348,2]
[387630948,1758791440945,-3000.0,0.0002349,2]
[387630950,1758791440955,-3000.0,0.000235,2]
[387630952,1758791440964,-500.0,0.00023504,2]
[387630954,1758791440974,-500.0,0.00023509,2]
[387630956,1758791440983,-3000.0,0.0002351,2]
[387630958,1758791440992,-3000.0,0.0002352,2]
[387630960,1758791441001,-3000.0,0.0002353,2]
[387630962,1758791441010,-3000.0,0.0002354,2]
[387630964,1758791441020,-3000.0,0.0002355,2]
[387630966,1758791441029,-3000.0,0.0002356,2]
[387630968,1758791441038,-500.0,0.00023565,2]
[387630970,1758791441047,-500.0,0.00023569,2]